[Event "Fagernes Chess GM-Swiss 2025"]
[Site "Fagernes"]
[Date "2025.04.20"]
[Round "9.11"]
[White "Grave, Jacob Templen"]
[Black "Blomqvist, Erik"]
[Result "1/2-1/2"]
[Annotator "ChessBase"]
[ECO "C07"]
[WhiteElo "2337"]
[BlackElo "2475"]
[PlyCount "82"]
[EventDate "2025.04.12"]
[EventCountry "NOR"]
[SourceTitle "playchess.com"]
[Source "ChessBase"]
[SourceQuality "1"]
[TimeControl "40/6000+30:2400+30"]

1. e4 {[%emt 0:11:25]} e6 {[%emt 0:00:08]} 2. d4 {[%emt 0:00:08]} d5 {[%emt 0:00:07]} 3. Nd2 {[%emt 0:00:11]} c5 {[%emt 0:00:29]} 4. Ngf3 {[%emt 0:02:28]} cxd4 {[%emt 0:00:27]} 5. Nxd4 {[%emt 0:00:12]} Nf6 {[%emt 0:01:51]} 6. exd5 {[%emt 0:02:48]} Qxd5 {[%emt 0:00:15]} 7. Nb5 {[%emt 0:01:53]} Na6 {[%emt 0:00:56]} 8. Nc3 {[%emt 0:01:30]} Qd8 {[%emt 0:00:31]} 9. a3 {[%emt 0:00:20]} Be7 {[%emt 0:00:34]} 10. Qf3 {[%emt 0:02:22]} Nc7 {[%emt 0:01:17]} 11. Bd3 {[%emt 0:02:22]} O-O {[%emt 0:00:56]} 12. O-O {[%emt 0:05:50]} Ncd5 {[%emt 0:00:41]} 13. Nde4 {[%emt 0:06:54]} Nxc3 {[%emt 0:15:38]} 14. Nxc3 {[%emt 0:00:48]} Qb6 {[%emt 0:07:07]} 15. Be3 {[%emt 0:07:35]} Qc6 {[%emt 0:00:51]} 16. Qxc6 {[%emt 0:15:13]} bxc6 {[%emt 0:00:26]} 17. Na4 {[%emt 0:00:11]} Rd8 {[%emt 0:00:16]} 18. Bc5 {[%emt 0:03:54]} Kf8 {[%emt 0:00:21]} 19. Rad1 {[%emt 0:02:14]} Bxc5 {[%emt 0:04:38]} 20. Nxc5 {[%emt 0:00:05]} Ke7 {[%emt 0:00:21]} 21. Rfe1 {[%emt 0:10:30]} Rd5 {[%emt 0:03:05]} 22. b4 {[%emt 0:01:15]} h6 {[%emt 0:15:18]} 23. Nb3 {[%emt 0:01:46]} Kd8 {[%emt 0:03:13]} 24. c4 {[%emt 0:01:31]} Rd7 {[%emt 0:02:05]} 25. Na5 {[%emt 0:01:42]} Kc7 {[%emt 0:00:30]} 26. Bc2 {[%emt 0:04:24]} c5 {[%emt 0:04:50]} 27. Ba4 {[%emt 0:04:30]} Rxd1 {[%emt 0:01:05]} 28. Rxd1 {[%emt 0:01:24]} Bd7 {[%emt 0:00:45]} 29. Bxd7 {[%emt 0:01:45]} Nxd7 {[%emt 0:00:14]} 30. Nb3 {[%emt 0:01:09]} a6 {[%emt 0:02:57]} 31. Nxc5 {[%emt 0:06:30]} Nxc5 {[%emt 0:00:13]} 32. bxc5 {[%emt 0:00:03]} Rb8 {[%emt 0:00:23]} 33. h4 {[%emt 0:04:02]} Rb3 {[%emt 0:00:08]} 34. Rd6 {[%emt 0:01:08]} Rxa3 {[%emt 0:00:15]} 35. Rb6 {[%emt 0:01:35]} h5 {[%emt 0:00:38]} 36. g3 {[%emt 0:01:06]} g6 {[%emt 0:01:11]} 37. Kg2 {[%emt 0:00:56]} a5 {[%emt 0:02:05]} 38. Ra6 {[%emt 0:01:14]} Kb7 {[%emt 0:00:18]} 39. Rb6+ {[%emt 0:00:38]} Kc7 {[%emt 0:00:17]} 40. Ra6 {[%emt 0:00:18]} Kb7 {[%emt 0:01:02]} 41. Rb6+ {[%emt 0:40:15]} Kc7 {[%emt 0:40:06]} 1/2-1/2

[Event "Fagernes Chess GM-Swiss 2025"]
[Site "Fagernes"]
[Date "2025.04.20"]
[Round "9.12"]
[White "Willow, Jonah B"]
[Black "Fiskaaen, Martin Holten"]
[Result "1-0"]
[Annotator "ChessBase"]
[ECO "B80"]
[WhiteElo "2471"]
[BlackElo "2283"]
[PlyCount "115"]
[EventDate "2025.04.12"]
[EventCountry "NOR"]
[SourceTitle "playchess.com"]
[Source "ChessBase"]
[SourceQuality "1"]
[TimeControl "40/6000+30:2400+30"]

1. e4 {[%emt 0:03:30]} c5 {[%emt 0:00:31]} 2. Nc3 {[%emt 0:00:13]} a6 {[%emt 0:00:22]} 3. g3 {[%emt 0:00:25]} Nc6 {[%emt 0:02:10]} 4. Nge2 {[%emt 0:03:39]} d6 {[%emt 0:00:31]} 5. Bg2 {[%emt 0:00:39]} e6 {[%emt 0:00:52]} 6. d4 {[%emt 0:02:40]} cxd4 {[%emt 0:00:45]} 7. Nxd4 {[%emt 0:00:02]} Bd7 {[%emt 0:00:19]} 8. O-O {[%emt 0:00:57]} Nf6 {[%emt 0:02:53]} 9. Re1 {[%emt 0:01:22]} Be7 {[%emt 0:01:24]} 10. Nxc6 {[%emt 0:01:37]} Bxc6 {[%emt 0:00:24]} 11. e5 {[%emt 0:04:12]} dxe5 {[%emt 0:02:39]} 12. Bxc6+ {[%emt 0:00:10]} bxc6 {[%emt 0:00:04]} 13. Rxe5 {[%emt 0:02:24]} Nd5 {[%emt 0:22:48]} 14. Na4 {[%emt 0:02:07]} O-O {[%emt 0:01:37]} 15. Re4 {[%emt 0:14:50]} Qc7 {[%emt 0:06:25]} 16. c4 {[%emt 0:05:27]} Nf6 {[%emt 0:01:38]} 17. Bf4 {[%emt 0:04:39]} Qb7 {[%emt 0:01:05]} 18. Re3 {[%emt 0:02:52]} Rad8 {[%emt 0:03:22]} 19. Qc2 {[%emt 0:00:57]} Nd7 {[%emt 0:05:41]} 20. Rb3 {[%emt 0:01:55]} Qa8 {[%emt 0:00:25]} 21. c5 {[%emt 0:01:07]} Nf6 {[%emt 0:07:26]} 22. Bc7 {[%emt 0:06:05]} Rde8 {[%emt 0:00:42]} 23. Qc4 {[%emt 0:05:01]} Nd5 {[%emt 0:02:01]} 24. Be5 {[%emt 0:00:25]} f6 {[%emt 0:05:08]} 25. Bd4 {[%emt 0:05:44]} Kh8 {[%emt 0:09:20]} 26. Nb6 {[%emt 0:00:54]} Qa7 {[%emt 0:00:42]} 27. Qa4 {[%emt 0:11:48]} e5 {[%emt 0:01:52]} 28. Qxc6 {[%emt 0:03:04]} exd4 {[%emt 0:00:05]} 29. Qxd5 {[%emt 0:00:12]} Rd8 {[%emt 0:00:06]} 30. Qc6 {[%emt 0:00:50]} d3 {[%emt 0:00:39]} 31. Rd1 {[%emt 0:00:05]} d2 {[%emt 0:00:44]} 32. Re3 {[%emt 0:00:46]} f5 {[%emt 0:07:50]} 33. b4 {[%emt 0:02:52]} Bg5 {[%emt 0:01:37]} 34. f4 {[%emt 0:01:56]} Bf6 {[%emt 0:00:12]} 35. Re2 {[%emt 0:03:17]} Bc3 {[%emt 0:02:59]} 36. Nd5 {[%emt 0:05:49]} Bd4+ {[%emt 0:01:00]} 37. Kg2 {[%emt 0:02:24]} Qf7 {[%emt 0:01:10]} 38. Rexd2 {[%emt 0:05:20]} Rc8 {[%emt 0:04:47]} 39. Qd6 {[%emt 0:00:09]} Rfd8 {[%emt 0:02:38]} 40. Qxd8+ {[%emt 0:03:42]} Rxd8 {[%emt 0:00:06]} 41. Rxd4 {[%emt 0:40:02]} Qb7 {[%emt 0:53:04]} 42. Kf2 {[%emt 0:00:00]} h6 {[%emt 0:00:00]} 43. Ne3 {[%emt 0:00:00]} Rf8 {[%emt 0:00:00]} 44. Rd8 {[%emt 0:00:00]} Rxd8 {[%emt 0:00:00]} 45. Rxd8+ {[%emt 0:00:00]} Kh7 {[%emt 0:00:00]} 46. Rd4 {[%emt 0:00:00]} Qh1 {[%emt 0:00:00]} 47. h4 {[%emt 0:08:14]} g5 {[%emt 0:00:00]} 48. hxg5 {[%emt 0:00:00]} hxg5 {[%emt 0:00:00]} 49. fxg5 {[%emt 0:00:00]} Kg6 {[%emt 0:00:00]} 50. Rc4 {[%emt 0:00:00]} Qh2+ {[%emt 0:00:00]} 51. Ng2 {[%emt 0:00:00]} Qh8 {[%emt 0:00:34]} 52. Nf4+ {[%emt 0:00:00]} Kxg5 {[%emt 0:00:07]} 53. c6 {[%emt 0:00:00]} Qb2+ {[%emt 0:05:42]} 54. Ne2 {[%emt 0:00:00]} Qxa2 {[%emt 0:00:27]} 55. Rc3 {[%emt 0:00:00]} Qg8 {[%emt 0:00:36]} 56. c7 {[%emt 0:00:00]} Qc8 {[%emt 0:00:06]} 57. Nf4 {[%emt 0:00:00]} Kg4 {[%emt 0:00:42]} 58. Rc6 {[%emt 0:00:00]} 1-0

[Event "Fagernes Chess GM-Swiss 2025"]
[Site "Fagernes"]
[Date "2025.04.20"]
[Round "9.13"]
[White "Hillarp Persson, Tiger"]
[Black "Ostensen, Nicolai Maxime"]
[Result "1-0"]
[Annotator "ChessBase"]
[ECO "E92"]
[WhiteElo "2462"]
[BlackElo "2260"]
[PlyCount "67"]
[EventDate "2025.04.12"]
[EventCountry "NOR"]
[SourceTitle "playchess.com"]
[Source "ChessBase"]
[SourceQuality "1"]
[TimeControl "40/6000+30:2400+30"]

1. d4 {[%emt 0:02:47]} Nf6 {[%emt 0:00:10]} 2. c4 {[%emt 0:00:19]} g6 {[%emt 0:00:15]} 3. Nc3 {[%emt 0:00:07]} Bg7 {[%emt 0:00:06]} 4. e4 {[%emt 0:00:07]} d6 {[%emt 0:00:06]} 5. Nf3 {[%emt 0:04:40]} O-O {[%emt 0:00:07]} 6. Be2 {[%emt 0:00:55]} e5 {[%emt 0:00:08]} 7. d5 {[%emt 0:00:13]} a5 {[%emt 0:00:25]} 8. Bg5 {[%emt 0:02:52]} h6 {[%emt 0:00:16]} 9. Be3 {[%emt 0:00:07]} Na6 {[%emt 0:06:59]} 10. Nd2 {[%emt 0:00:33]} Ne8 {[%emt 0:06:17]} 11. g4 {[%emt 0:00:08]} f5 {[%emt 0:07:20]} 12. gxf5 {[%emt 0:00:40]} gxf5 {[%emt 0:00:05]} 13. exf5 {[%emt 0:00:11]} Bxf5 {[%emt 0:00:21]} 14. Rg1 {[%emt 0:11:02]} Kh8 {[%emt 0:01:03]} 15. Nf1 {[%emt 0:50:58]} Nb4 {[%emt 0:07:02]} 16. Rc1 {[%emt 0:00:10]} Qh4 {[%emt 0:26:31]} 17. Ng3 {[%emt 0:07:57]} Bh7 {[%emt 0:04:59]} 18. a3 {[%emt 0:06:01]} Na6 {[%emt 0:00:13]} 19. Bd3 {[%emt 0:00:49]} e4 {[%emt 0:02:53]} 20. Ngxe4 {[%emt 0:00:46]} Bxe4 {[%emt 0:02:38]} 21. Nxe4 {[%emt 0:00:09]} Bxb2 {[%emt 0:04:33]} 22. Rb1 {[%emt 0:11:17]} Bg7 {[%emt 0:02:18]} 23. Rxb7 {[%emt 0:00:29]} Nf6 {[%emt 0:12:26]} 24. Rxg7 {[%emt 0:01:48]} Kxg7 {[%emt 0:00:48]} 25. Nxd6 {[%emt 0:00:20]} Ng4 {[%emt 0:04:56]} 26. Bd4+ {[%emt 0:02:13]} Kg8 {[%emt 0:01:45]} 27. Qe2 {[%emt 0:00:47]} Nf6 {[%emt 0:06:32]} 28. Qe6+ {[%emt 0:01:57]} Kh8 {[%emt 0:00:16]} 29. Nf5 {[%emt 0:00:17]} Qg5 {[%emt 0:00:46]} 30. h4 {[%emt 0:01:35]} Qg6 {[%emt 0:01:31]} 31. h5 {[%emt 0:01:52]} Qe8 {[%emt 0:00:34]} 32. Kd2 {[%emt 0:00:32]} Qxe6 {[%emt 0:00:32]} 33. dxe6 {[%emt 0:00:06]} Rae8 {[%emt 0:00:14]} 34. e7 {[%emt 0:00:31]} 1-0

[Event "Fagernes Chess GM-Swiss 2025"]
[Site "Fagernes"]
[Date "2025.04.20"]
[Round "9.14"]
[White "Southcott-Moyers, Indy"]
[Black "Dotzer, Lukas"]
[Result "0-1"]
[Annotator "RC"]
[ECO "D00"]
[WhiteElo "2227"]
[BlackElo "2453"]
[PlyCount "125"]
[EventDate "2025.04.12"]
[EventCountry "NOR"]
[SourceTitle "playchess.com"]
[Source "ChessBase"]
[SourceQuality "1"]
[TimeControl "40/6000+30:2400+30"]

1. d4 {[%emt 0:00:03]} Nf6 {[%emt 0:00:05]} 2. Nc3 {[%emt 0:00:04]} d5 {[%emt 0:00:07]} 3. Bf4 {[%emt 0:00:06]} a6 {[%emt 0:00:08]} 4. e3 {[%emt 0:00:05]} Bf5 {[%emt 0:00:16]} 5. Nf3 {[%emt 0:00:26]} e6 {[%emt 0:00:26]} 6. Ne5 {[%emt 0:00:11]} Nfd7 {[%emt 0:00:22]} 7. g4 {[%emt 0:02:19]} Bg6 {[%emt 0:00:06]} 8. Nxg6 {[%emt 0:00:06]} hxg6 {[%emt 0:00:08]} 9. e4 {[%emt 0:01:34]} Nf6 {[%emt 0:02:20]} 10. Bg2 {[%emt 0:01:49]} Bb4 {[%emt 0:06:06]} 11. exd5 {[%emt 0:05:21]} Nxd5 {[%emt 0:00:25]} 12. Bd2 {[%emt 0:00:58]} c6 {[%emt 0:14:11]} 13. Ne2 {[%emt 0:18:49]} Qd6 {[%emt 0:18:50]} 14. h3 {[%emt 0:11:02]} Nd7 {[%emt 0:06:14]} 15. c3 {[%emt 0:03:37]} Ba5 {[%emt 0:00:04]} 16. Qc2 {[%emt 0:06:03]} b5 {[%emt 0:06:22]} 17. Ng3 {[%emt 0:09:17]} Qe7 {[%emt 0:15:35]} 18. Ne4 {[%emt 0:08:04]} Bc7 {[%emt 0:08:58]} 19. O-O-O {[%emt 0:06:17]} a5 {[%emt 0:06:27]} 20. Kb1 {[%emt 0:01:36]} a4 {[%emt 0:05:00]} 21. a3 {[%emt 0:02:09]} N7b6 {[%emt 0:02:34]} 22. Bg5 {[%emt 0:02:25]} Qf8 {[%emt 0:00:55]} 23. h4 {[%emt 0:06:32]} Bd8 {[%emt 0:07:19]} 24. Bxd8 {[%emt 0:06:23]} Kxd8 {[%emt 0:00:07]} 25. Bf1 {[%emt 0:00:23]} Qe7 {[%emt 0:07:00]} 26. c4 {[%emt 0:03:39]} bxc4 {[%emt 0:00:04]} 27. Bxc4 {[%emt 0:00:25]} Rb8 {[%emt 0:01:05]} 28. Nc5 {[%emt 0:01:34]} Rxh4 {[%emt 0:01:54]} 29. Ka2 {[%emt 0:06:50]} Qf6 {[%emt 0:01:15]} 30. Ne4 {[%emt 0:03:33]} Qe7 {[%emt 0:00:03]} 31. Rxh4 {[%emt 0:01:14]} Qxh4 {[%emt 0:00:06]} 32. Be2 {[%emt 0:00:10]} Rc8 {[%emt 0:01:22]} 33. Qd2 {[%emt 0:02:00]} Qh3 {[%emt 0:00:32]} 34. f3 {[%emt 0:00:40]} Qh2 {[%emt 0:00:20]} 35. Re1 {[%emt 0:01:13]} Qf4 {[%emt 0:00:26]} 36. Qc2 {[%emt 0:00:35]} Qe3 {[%emt 0:00:41]} 37. Rd1 {[%emt 0:00:45]} Qf4 {[%emt 0:00:33]} 38. Qc5 {[%emt 0:00:29]} Nd7 {[%emt 0:00:28]} 39. Qa5+ {[%emt 0:00:19]} N5b6 {[%emt 0:00:16]} 40. Rh1 {[%emt 0:00:34]} Qe3 {[%emt 0:00:40]} 41. Qb4 {[%emt 0:20:50]} Qxe2 {[%emt 0:11:01]} 42. Qd6 {[%emt 0:04:07]} Qxb2+ {[%emt 0:00:14]} 43. Kxb2 {[%emt 0:00:06]} Nc4+ {[%emt 0:00:08]} 44. Kc3 {[%emt 0:00:39]} Nxd6 {[%emt 0:00:06]} 45. Nxd6 {[%emt 0:00:03]} Rb8 {[%emt 0:15:03]} 46. Rh8+ {[%emt 0:01:13]} Ke7 {[%emt 0:00:45]} 47. Rxb8 {[%emt 0:00:06]} Nxb8 {[%emt 0:00:04]} 48. Nc8+ {[%emt 0:01:52]} Kd8 {[%emt 0:10:16]} 49. Nb6 {[%emt 0:00:28]} Na6 {[%emt 0:00:36]} 50. Nxa4 {[%emt 0:11:19]} Nc7 {[%emt 0:00:04]} 51. Kc4 {[%emt 0:00:07]} Nb5 {[%emt 0:00:14]} 52. Kc5 {[%emt 0:00:12]} Nxa3 {[%emt 0:05:29]} 53. Nb2 {[%emt 0:00:25]} Kc7 {[%emt 0:02:14]} 54. Nd3 {[%emt 0:00:13]} Nb1 {[%emt 0:00:23]} 55. Ne5 {[%emt 0:00:27]} Nd2 {[%emt 0:00:27]} 56. f4 {[%emt 0:05:02]} g5 {[%emt 0:00:49]} 57. fxg5 {[%emt 0:00:45]} Ne4+ {[%emt 0:00:05]} 58. Kc4 {[%emt 0:00:10]} Nxg5 {[%emt 0:00:06]} 59. Kc5 {[%emt 0:00:02]} Ne4+ {[%emt 0:00:36]} 60. Kc4 {[%emt 0:00:06]} f6 {[%emt 0:00:48]} 61. Ng6 {[%emt 0:00:15]} Kd6 {[%emt 0:00:57]} 62. Nf4 {[%emt 0:00:18]} g5 {[%emt 0:00:37]} 63. Nh5 {[%emt 0:00:26]} 0-1

[Event "Fagernes Chess GM-Swiss 2025"]
[Site "Fagernes"]
[Date "2025.04.20"]
[Round "9.15"]
[White "Adharsh K"]
[Black "Miezis, Normunds"]
[Result "1/2-1/2"]
[Annotator "ChessBase"]
[ECO "B41"]
[WhiteElo "2317"]
[BlackElo "2409"]
[PlyCount "119"]
[EventDate "2025.04.12"]
[EventCountry "NOR"]
[SourceTitle "playchess.com"]
[Source "ChessBase"]
[SourceQuality "1"]
[TimeControl "40/6000+30:2400+30"]

1. e4 {[%emt 0:04:30]} c5 {[%emt 0:00:16]} 2. Nf3 {[%emt 0:00:06]} e6 {[%emt 0:00:16]} 3. d4 {[%emt 0:00:10]} cxd4 {[%emt 0:00:09]} 4. Nxd4 {[%emt 0:00:03]} a6 {[%emt 0:00:16]} 5. c4 {[%emt 0:00:30]} Qc7 {[%emt 0:03:39]} 6. Nc3 {[%emt 0:01:32]} Nc6 {[%emt 0:00:26]} 7. Be3 {[%emt 0:09:31]} Nf6 {[%emt 0:02:36]} 8. a3 {[%emt 0:01:25]} b6 {[%emt 0:05:05]} 9. Be2 {[%emt 0:01:33]} Bb7 {[%emt 0:00:47]} 10. f3 {[%emt 0:03:02]} h5 {[%emt 0:01:05]} 11. O-O {[%emt 0:06:55]} Nxd4 {[%emt 0:09:22]} 12. Qxd4 {[%emt 0:05:05]} Bc5 {[%emt 0:01:22]} 13. Qd3 {[%emt 0:00:48]} Qf4 {[%emt 0:02:23]} 14. Bxc5 {[%emt 0:01:02]} bxc5 {[%emt 0:00:11]} 15. Na4 {[%emt 0:00:24]} d6 {[%emt 0:07:34]} 16. Rad1 {[%emt 0:04:00]} Ke7 {[%emt 0:12:34]} 17. b4 {[%emt 0:04:59]} Bc6 {[%emt 0:08:04]} 18. Nc3 {[%emt 0:06:11]} g5 {[%emt 0:05:46]} 19. Qd2 {[%emt 0:14:33]} h4 {[%emt 0:07:50]} 20. Qxf4 {[%emt 0:01:46]} gxf4 {[%emt 0:00:09]} 21. h3 {[%emt 0:00:08]} Rhb8 {[%emt 0:06:12]} 22. Rb1 {[%emt 0:00:06]} Nd7 {[%emt 0:00:27]} 23. Rfc1 {[%emt 0:04:46]} Ne5 {[%emt 0:02:18]} 24. Bf1 {[%emt 0:00:20]} Be8 {[%emt 0:00:40]} 25. Rc2 {[%emt 0:07:37]} Rc8 {[%emt 0:01:49]} 26. Ne2 {[%emt 0:02:45]} cxb4 {[%emt 0:02:16]} 27. Rxb4 {[%emt 0:00:07]} Ng6 {[%emt 0:04:53]} 28. Rb7+ {[%emt 0:00:11]} Bd7 {[%emt 0:03:32]} 29. Rb6 {[%emt 0:07:18]} a5 {[%emt 0:11:20]} 30. Rd2 {[%emt 0:13:10]} Rc6 {[%emt 0:00:49]} 31. Rb7 {[%emt 0:00:02]} Rac8 {[%emt 0:01:14]} 32. Ra7 {[%emt 0:03:29]} Rxc4 {[%emt 0:03:52]} 33. Rxa5 {[%emt 0:00:02]} Rc2 {[%emt 0:02:05]} 34. Rxc2 {[%emt 0:01:29]} Rxc2 {[%emt 0:00:07]} 35. Nd4 {[%emt 0:00:34]} Rd2 {[%emt 0:00:33]} 36. Nb3 {[%emt 0:00:52]} Rb2 {[%emt 0:01:42]} 37. Nd4 {[%emt 0:00:09]} Ne5 {[%emt 0:00:40]} 38. Ra7 {[%emt 0:03:03]} Kd8 {[%emt 0:00:39]} 39. a4 {[%emt 0:00:19]} Rb4 {[%emt 0:02:09]} 40. Ne2 {[%emt 0:03:50]} Bxa4 {[%emt 0:02:47]} 41. Nxf4 {[%emt 0:40:06]} d5 {[%emt 0:03:51]} 42. Ra5 {[%emt 0:00:00]} Kc7 {[%emt 0:04:19]} 43. Rxd5 {[%emt 0:00:00]} Ng6 {[%emt 0:04:06]} 44. Rc5+ {[%emt 0:00:00]} Kd6 {[%emt 0:02:08]} 45. Nd3 {[%emt 0:00:00]} Rd4 {[%emt 0:00:58]} 46. Ra5 {[%emt 0:00:00]} Bc2 {[%emt 0:01:41]} 47. Ra6+ {[%emt 0:00:00]} Ke7 {[%emt 0:00:16]} 48. Ra7+ {[%emt 0:00:00]} Kf6 {[%emt 0:00:19]} 49. Nf2 {[%emt 0:00:00]} Kg7 {[%emt 0:02:31]} 50. Rc7 {[%emt 0:00:00]} Rd2 {[%emt 0:00:37]} 51. Ng4 {[%emt 0:00:00]} Ba4 {[%emt 0:00:15]} 52. Ra7 {[%emt 0:00:00]} Bd1 {[%emt 0:01:06]} 53. Bc4 {[%emt 0:00:00]} Nf4 {[%emt 0:00:20]} 54. Ra2 {[%emt 0:00:00]} Rxa2 {[%emt 0:02:31]} 55. Bxa2 {[%emt 0:00:00]} Be2 {[%emt 0:01:18]} 56. Kf2 {[%emt 0:00:00]} Bb5 {[%emt 0:00:09]} 57. Bb1 {[%emt 0:00:00]} f6 {[%emt 0:00:47]} 58. Bc2 {[%emt 0:00:00]} Bd7 {[%emt 0:00:33]} 59. Ne3 {[%emt 0:00:00]} e5 {[%emt 0:00:57]} 60. Bb1 {[%emt 0:00:00]} 1/2-1/2

[Event "Fagernes Chess GM-Swiss 2025"]
[Site "Fagernes"]
[Date "2025.04.20"]
[Round "9.16"]
[White "Vestby-Ellingsen, Mads"]
[Black "Vijayakumar, Rishi"]
[Result "1/2-1/2"]
[Annotator "ChessBase"]
[ECO "C47"]
[WhiteElo "2398"]
[BlackElo "2317"]
[PlyCount "32"]
[EventDate "2025.04.12"]
[EventCountry "NOR"]
[SourceTitle "playchess.com"]
[Source "ChessBase"]
[SourceQuality "1"]
[TimeControl "40/6000+30:2400+30"]

1. e4 {[%emt 0:13:01]} e5 {[%emt 0:00:06]} 2. Nf3 {[%emt 0:00:11]} Nc6 {[%emt 0:00:05]} 3. Nc3 {[%emt 0:00:34]} Nf6 {[%emt 0:00:06]} 4. a3 {[%emt 0:00:12]} g6 {[%emt 0:02:24]} 5. d4 {[%emt 0:02:54]} exd4 {[%emt 0:00:09]} 6. Nxd4 {[%emt 0:00:11]} Bg7 {[%emt 0:00:08]} 7. Nxc6 {[%emt 0:01:41]} bxc6 {[%emt 0:00:07]} 8. Bd3 {[%emt 0:00:32]} O-O {[%emt 0:01:26]} 9. O-O {[%emt 0:03:24]} d6 {[%emt 0:03:11]} 10. Bg5 {[%emt 0:00:00]} h6 {[%emt 0:04:31]} 11. Bh4 {[%emt 0:00:00]} Rb8 {[%emt 0:02:14]} 12. Rb1 {[%emt 0:00:03]} c5 {[%emt 0:35:37]} 13. Re1 {[%emt 0:10:39]} g5 {[%emt 0:10:47]} 14. Bg3 {[%emt 0:00:49]} Ng4 {[%emt 0:00:12]} 15. h3 {[%emt 0:06:19]} Ne5 {[%emt 0:00:07]} 16. Bf1 {[%emt 0:00:18]} Ng6 {[%emt 0:01:20]} 1/2-1/2

[Event "Fagernes Chess GM-Swiss 2025"]
[Site "Fagernes"]
[Date "2025.04.20"]
[Round "9.17"]
[White "Andersen, Morten"]
[Black "Lund, Gunnar"]
[Result "1/2-1/2"]
[Annotator "ChessBase"]
[ECO "A13"]
[WhiteElo "2200"]
[BlackElo "2341"]
[PlyCount "26"]
[EventDate "2025.04.12"]
[EventCountry "NOR"]
[SourceTitle "playchess.com"]
[Source "ChessBase"]
[SourceQuality "1"]
[TimeControl "40/6000+30:2400+30"]

1. Nf3 {[%emt 0:00:30]} d5 {[%emt 0:11:14]} 2. e3 {[%emt 0:00:00]} Nf6 {[%emt 0:00:19]} 3. c4 {[%emt 0:00:00]} e6 {[%emt 0:00:35]} 4. b3 {[%emt 0:02:39]} Be7 {[%emt 0:00:14]} 5. Bb2 {[%emt 0:00:25]} O-O {[%emt 0:00:10]} 6. Nc3 {[%emt 0:00:39]} b6 {[%emt 0:00:22]} 7. cxd5 {[%emt 0:01:25]} exd5 {[%emt 0:00:12]} 8. Be2 {[%emt 0:06:51]} c5 {[%emt 0:00:50]} 9. d4 {[%emt 0:00:40]} Nc6 {[%emt 0:00:20]} 10. O-O {[%emt 0:04:21]} Be6 {[%emt 0:00:22]} 11. Rc1 {[%emt 0:05:52]} Rc8 {[%emt 0:04:17]} 12. dxc5 {[%emt 0:06:12]} bxc5 {[%emt 0:00:22]} 13. Na4 {[%emt 0:01:31]} Nd7 {[%emt 0:06:00]} 1/2-1/2

[Event "Fagernes Chess GM-Swiss 2025"]
[Site "Fagernes"]
[Date "2025.04.20"]
[Round "9.18"]
[White "Verbin, Valentina"]
[Black "Eliseev, Sergey"]
[Result "0-1"]
[Annotator "ChessBase"]
[ECO "B90"]
[WhiteElo "2113"]
[BlackElo "2226"]
[PlyCount "80"]
[EventDate "2025.04.12"]
[EventCountry "NOR"]
[SourceTitle "playchess.com"]
[Source "ChessBase"]
[SourceQuality "1"]
[TimeControl "40/6000+30:2400+30"]

1. e4 {[%emt 0:06:22]} c5 {[%emt 0:00:05]} 2. Nf3 {[%emt 0:00:10]} d6 {[%emt 0:00:05]} 3. d4 {[%emt 0:00:24]} cxd4 {[%emt 0:00:06]} 4. Nxd4 {[%emt 0:00:18]} Nf6 {[%emt 0:00:06]} 5. Nc3 {[%emt 0:00:09]} a6 {[%emt 0:00:05]} 6. Be3 {[%emt 0:01:12]} e5 {[%emt 0:00:08]} 7. Nf3 {[%emt 0:00:39]} Be7 {[%emt 0:02:10]} 8. Bc4 {[%emt 0:00:16]} Be6 {[%emt 0:01:06]} 9. Bb3 {[%emt 0:00:55]} Nbd7 {[%emt 0:05:25]} 10. O-O {[%emt 0:04:40]} Ng4 {[%emt 0:01:37]} 11. Bc1 {[%emt 0:12:20]} Nc5 {[%emt 0:00:17]} 12. Qe2 {[%emt 0:03:52]} Nxb3 {[%emt 0:02:56]} 13. axb3 {[%emt 0:03:27]} f5 {[%emt 0:01:05]} 14. h3 {[%emt 0:11:30]} Nh6 {[%emt 0:09:36]} 15. Bxh6 {[%emt 0:18:05]} gxh6 {[%emt 0:00:02]} 16. exf5 {[%emt 0:09:46]} Bxf5 {[%emt 0:00:03]} 17. Nxe5 {[%emt 0:03:58]} dxe5 {[%emt 0:02:09]} 18. Qxe5 {[%emt 0:00:05]} O-O {[%emt 0:00:27]} 19. Rad1 {[%emt 0:03:22]} Qe8 {[%emt 0:06:12]} 20. Rfe1 {[%emt 0:07:58]} Bg5 {[%emt 0:00:48]} 21. Qg3 {[%emt 0:05:45]} Qg6 {[%emt 0:03:43]} 22. Rd6 {[%emt 0:02:44]} Rf6 {[%emt 0:02:35]} 23. Rd4 {[%emt 0:06:06]} Qg7 {[%emt 0:05:04]} 24. Nd5 {[%emt 0:06:22]} Rg6 {[%emt 0:00:38]} 25. Rc4 {[%emt 0:00:14]} Rf8 {[%emt 0:08:12]} 26. Rc7 {[%emt 0:00:59]} Qd4 {[%emt 0:00:17]} 27. c4 {[%emt 0:01:47]} Bd8 {[%emt 0:01:15]} 28. Qf3 {[%emt 0:00:27]} Bxc7 {[%emt 0:03:10]} 29. Ne7+ {[%emt 0:00:16]} Kh8 {[%emt 0:00:10]} 30. Nxg6+ {[%emt 0:00:32]} hxg6 {[%emt 0:00:08]} 31. g4 {[%emt 0:00:03]} Qd3 {[%emt 0:03:36]} 32. Re3 {[%emt 0:00:47]} Qd6 {[%emt 0:02:18]} 33. gxf5 {[%emt 0:00:19]} Rxf5 {[%emt 0:00:02]} 34. Re8+ {[%emt 0:00:48]} Kh7 {[%emt 0:00:01]} 35. Qe3 {[%emt 0:00:07]} Rg5+ {[%emt 0:01:24]} 36. Kf1 {[%emt 0:00:05]} Qd1+ {[%emt 0:00:02]} 37. Qe1 {[%emt 0:00:04]} Qd3+ {[%emt 0:00:03]} 38. Qe2 {[%emt 0:00:15]} Qxh3+ {[%emt 0:00:05]} 39. Ke1 {[%emt 0:00:23]} Ba5+ {[%emt 0:00:02]} 40. Kd1 {[%emt 0:00:22]} Qxb3+ {[%emt 0:00:02]} 0-1

[Event "Fagernes Chess GM-Swiss 2025"]
[Site "Fagernes"]
[Date "2025.04.20"]
[Round "9.19"]
[White "Myagmarsuren, Evsuld"]
[Black "Olsen, William Alexander"]
[Result "1-0"]
[Annotator "ChessBase"]
[ECO "D00"]
[WhiteElo "2305"]
[BlackElo "2188"]
[PlyCount "63"]
[EventDate "2025.04.12"]
[EventCountry "NOR"]
[SourceTitle "playchess.com"]
[Source "ChessBase"]
[SourceQuality "1"]
[TimeControl "40/6000+30:2400+30"]

1. d4 {[%emt 0:01:33]} Nf6 {[%emt 0:04:03]} 2. Nc3 {[%emt 0:00:03]} d5 {[%emt 0:01:05]} 3. Bf4 {[%emt 0:00:04]} e6 {[%emt 0:00:08]} 4. Nb5 {[%emt 0:00:07]} Na6 {[%emt 0:00:06]} 5. e3 {[%emt 0:00:05]} c6 {[%emt 0:00:15]} 6. Nc3 {[%emt 0:00:04]} c5 {[%emt 0:00:03]} 7. Nf3 {[%emt 0:00:44]} Nc7 {[%emt 0:01:43]} 8. Ne5 {[%emt 0:04:54]} c4 {[%emt 0:11:30]} 9. g4 {[%emt 0:04:50]} Bb4 {[%emt 0:22:46]} 10. Qf3 {[%emt 0:07:25]} Nb5 {[%emt 0:07:20]} 11. g5 {[%emt 0:26:34]} Bxc3+ {[%emt 0:15:02]} 12. bxc3 {[%emt 0:00:06]} Qa5 {[%emt 0:00:05]} 13. Bxc4 {[%emt 0:14:31]} Qxc3+ {[%emt 0:06:30]} 14. Kf1 {[%emt 0:03:38]} dxc4 {[%emt 0:07:00]} 15. gxf6 {[%emt 0:00:07]} gxf6 {[%emt 0:00:40]} 16. Bg5 {[%emt 0:03:45]} fxe5 {[%emt 0:10:46]} 17. Qf6 {[%emt 0:00:11]} Kd7 {[%emt 0:00:14]} 18. Qe7+ {[%emt 0:03:54]} Kc6 {[%emt 0:00:02]} 19. Qc5+ {[%emt 0:00:07]} Kd7 {[%emt 0:00:08]} 20. Qxb5+ {[%emt 0:00:08]} Kc7 {[%emt 0:00:08]} 21. Qc5+ {[%emt 0:01:10]} Kd7 {[%emt 0:00:08]} 22. Rd1 {[%emt 0:02:38]} Qxc2 {[%emt 0:00:40]} 23. Kg2 {[%emt 0:00:25]} Qe4+ {[%emt 0:01:59]} 24. f3 {[%emt 0:00:06]} Qc2+ {[%emt 0:01:11]} 25. Kg3 {[%emt 0:00:06]} f6 {[%emt 0:02:11]} 26. dxe5+ {[%emt 0:00:17]} Ke8 {[%emt 0:00:07]} 27. Qc7 {[%emt 0:03:41]} Bd7 {[%emt 0:02:20]} 28. Qc5 {[%emt 0:00:11]} Bc8 29. Rd8+ Kxd8 30. Bxf6+ {[%emt 0:00:02]} Kd7 31. Qd6+ Ke8 32. Qe7# 1-0